Cogmind - Beta 16.1 @@@ ROGUE MODE // 2026.04.28 @ 23:29:53 Player: Thqwib-Linux Result: Destroyed by MAIN.C with Heavy Quantum Rifle Performance ------------- Evolutions (9) 4500 Regions Visited (26) 5200 Robots Destroyed (301) 1505 Value Destroyed (15511) 15511 Prototype IDs (121) 2420 Alien Tech Used (1) 200 Bonus (11571) 11571 TOTAL SCORE: 40907 Bonus ------- High Alert Combat Kills 4241 Follower Combat Kills 230 Registered with UFD 300 Met Optimus in HQ 500 Met Zhirov 300 Scanned by Researcher 500 Destroyed MAIN.C Guards 500 Met MAIN.C 5000 Cogmind --------- Core Integrity 0/1600 Matter 103/300 Energy 100/100 System Corruption 47% Temperature Cool (9) Movement Core (50) Location -1/Command Parts ------- > --- POWER (2) -------- (None) > --- PROPULSION (8) --- (None) > --- UTILITY (11) ----- Spectral Analyzer Graphene Brace > --- WEAPON (4) ------- (None) > --- INVENTORY (5) ---- Advanced Heat Sink Medium Matter Pod (0) Concept Weapon Articulator Advanced Micro-nuke Launcher Peak State ------------ > --- POWER ------------ Antimatter Reactor Light Quantum Reactor > --- PROPULSION ------- Experimental VSS Leg Experimental VSS Leg Experimental Armored Exoskeleton Concept Biometal Exoskeleton > --- UTILITY ---------- Advanced Cooling System Concept Antigrav Storage Unit Spectral Analyzer Experimental Signal Interpreter Concept Hypertargeting System Concept Recoil Nullifier Experimental Kinecellerator Concept RG22 Armor Concept RG22 Armor Concept RG22 Armor Experimental System Purifier > --- WEAPON ----------- Concept Lightning Penetrator Concept Lightning Penetrator Concept Heavy Railcannon > --- INVENTORY -------- Light Quantum Reactor Experimental VSS Leg Experimental VSS Leg Experimental VSS Leg Concept Chromion Battery Concept Networked Targeting System Concept Weapon Articulator Graphene Brace Concept Antimissile System Advanced Hacking Suite Improved Heavy Laser Enhanced Nova Cannon Concept XC Strikerail Concept XC Strikerail Concept XC Strikerail Concept XC Strikerail Concept Helical Railcannon Concept Helical Railcannon Concept Heavy Railcannon Advanced Micro-nuke Launcher Concept Arcsight Missile Launcher [Rating: 292] Favorites ----------- Power Light Quantum Reactor Engine F-cell Engine Power Core Light Nuclear Core Reactor Light Quantum Reactor Propulsion Improved Flight Unit Treads Light Treads Leg Experimental VSS Leg Wheel Compact Wheel Hover Unit Improved Antigrav System Flight Unit Improved Flight Unit Utility Concept RG22 Armor Device Advanced Heat Sink Storage Medium Storage Unit Processor Experimental Signal Interpreter Hackware Hacking Suite Protection Concept RG22 Armor Weapon Concept XC Strikerail Energy Gun Concept Lightning Penetrator Energy Cannon Concept Plasma Driver Ballistic Gun Concept XC Strikerail Ballistic Cannon Concept Helical Railcannon Launcher Rocket Launcher Special Weapon Remote Datajack Slashing Weapon Power Sword Build | -11 -10 -10 -10 -9 -8 -7 -7 -7 -7 -5 -5 -5 -5 -5 -5 -4 -4 -4 -4 -3 -3 -2 -2 -2 -1 -1 ------- Run | Yrd Mat Min Exi Min Mat Fac Sto Rec Scr Fac Was Fac Upp Upp Zhi Pro Fac Was Fac Res Tes Res Qua Frg Acc Com Slots Evolved 18 | . . . . . 4 2 . . . 4 . . . . . . 2 . . 2 . 2 . . 2 . Power 1 | . . . . . . . . . . . . . . . . . . . . . . 1 . . . . Propulsion 6 | . . . . . 2 1 . . . 2 . . . . . . . . . . . 1 . . . . Utility 9 | . . . . . 2 1 . . . 2 . . . . . . 2 . . 2 . . . . . . Weapon 2 | . . . . . . . . . . . . . . . . . . . . . . . . . 2 . Parts Attached 276 | 4 2 3 . . 42 10 10 . 3 12 1 8 . 1 4 . 3 . 8 3 39 7 7 78 14 17 Power 34 | . . 1 . . 5 1 2 . . 2 . 1 . . 1 . . . 2 . 4 . . 11 3 1 Engine 4 | . . . . . 2 . . . . 1 . 1 . . . . . . . . . . . . . . Core 11 | . . 1 . . 3 1 2 . . 1 . . . . . . . . 2 . . . . 1 . . Reactor 19 | . . . . . . . . . . . . . . . 1 . . . . . 4 . . 10 3 1 Propulsion 84 | 2 . 1 . . 15 5 2 . 1 2 1 . . 1 1 . . . 2 1 13 4 3 22 3 5 Treads 9 | 1 . 1 . . 7 . . . . . . . . . . . . . . . . . . . . . Leg 21 | . . . . . . . . . . . . . . . . . . . . . . . . 13 3 5 Wheel 8 | 1 . . . . 7 . . . . . . . . . . . . . . . . . . . . . Hover 8 | . . . . . . . . . . . . . . . 1 . . . . . 7 . . . . . Flight 38 | . . . . . 1 5 2 . 1 2 1 . . 1 . . . . 2 1 6 4 3 9 . . Utility 100 | 1 1 . . . 9 3 2 . 1 5 . 5 . . 2 . 2 . 4 2 16 2 4 33 1 7 Device 48 | 1 . . . . 4 2 1 . . 1 . 2 . . . . . . . . 9 1 2 17 1 7 Storage 11 | . . . . . 1 . . . 1 . . . . . 1 . 1 . . . 2 . 1 4 . . Processor 15 | . 1 . . . . 1 1 . . 1 . 1 . . . . . . 2 2 2 . . 4 . . Hackware 11 | . . . . . 1 . . . . 2 . 2 . . . . 1 . 2 . . 1 1 1 . . Protection 15 | . . . . . 3 . . . . 1 . . . . 1 . . . . . 3 . . 7 . . Artifact . | . . . . . . . . . . . . . . . . . . . . . . . . . . . Weapon 58 | 1 1 1 . . 13 1 4 . 1 3 . 2 . . . . 1 . . . 6 1 . 12 7 4 Energy Gun 14 | 1 . . . . . . 2 . . . . 1 . . . . . . . . 3 . . 4 3 . Energy Cannon 6 | . . . . . . . . . . 1 . . . . . . . . . . 2 1 . 1 . 1 Ballistic Gun 21 | . . 1 . . 11 . 1 . 1 1 . . . . . . . . . . . . . 3 2 1 Ballistic Cannon 6 | . . . . . . . 1 . . . . . . . . . . . . . 1 . . 1 2 1 Launcher 7 | . 1 . . . 2 . . . . . . . . . . . . . . . . . . 3 . 1 Special Weapon 2 | . . . . . . . . . . 1 . . . . . . 1 . . . . . . . . . Impact Weapon . | . . . . . . . . . . . . . . . . . . . . . . . . . . . Slashing Weapon 2 | . . . . . . 1 . . . . . 1 . . . . . . . . . . . . . . Piercing Weapon . | . . . . . . . . . . . . . . . . . . . . . . . . . . . Special Melee Weapon . | . . . . . . . . . . . . . . . . . . . . . . . . . . . Unidentified Prototypes 46 | . . . . . 1 . 2 . . 1 . 1 . . 5 . . . . 1 10 1 2 21 . 1 Parts Lost 102 | . . . . . 6 . 2 . . 2 1 . . . . . 3 . 5 4 11 . . 29 4 35 Power 13 | . . . . . 1 . . . . 1 . . . . . . . . 1 1 1 . . 4 1 3 Propulsion 30 | . . . . . 3 . 1 . . . . . . . . . 2 . 2 . 6 . . 7 . 9 Utility 34 | . . . . . 1 . 1 . . 1 . . . . . . . . 2 3 3 . . 10 1 12 Weapon 25 | . . . . . 1 . . . . . 1 . . . . . 1 . . . 1 . . 8 2 11 Highest Loss Streak 19 | . . . . . 2 . 2 . . 1 1 . . . . . 3 . 4 2 6 . . 7 3 19 To Critical Strikes . | . . . . . . . . . . . . . . . . . . . . . . . . . . . Average Backups 10 | 3 6 8 8 8 9 8 8 9 9 9 9 9 10 10 10 10 9 10 9 8 7 5 5 11 21 14 Power . | 1 1 1 1 1 . . . . . . 1 1 1 1 1 1 1 1 . . . . . . 1 . Propulsion 1 | 2 2 3 3 3 3 . . . . . . . 1 1 . . . . . . . . . 1 3 1 Utility 4 | . 1 2 2 2 1 4 5 5 5 6 6 7 7 7 7 9 7 8 7 6 4 3 3 2 6 6 Weapon 4 | . 1 2 2 2 3 3 3 3 2 1 2 1 1 1 . . . . . 2 1 2 2 6 10 6 Tool/Special . | . . . . . . . . . . . . . . . . . . . . . . . . . . . Unused Backups 36 | 6 2 3 . . 8 2 1 . 3 1 1 1 . . . . . 1 1 1 1 . . 1 . 3 Power 4 | . . 2 . . 1 . . . . . . 1 . . . . . . . . . . . . . . Propulsion 9 | 4 1 . . . 4 . . . . . . . . . . . . . . . . . . . . . Utility 15 | . . 1 . . 1 1 1 . 1 1 1 . . . . . . 1 1 1 1 . . 1 . 3 Weapon 8 | 2 1 . . . 2 1 . . 2 . . . . . . . . . . . . . . . . . Tool/Special . | . . . . . . . . . . . . . . . . . . . . . . . . . . . Average Slot Usage (%) 89 | . 100 100 100 100 97 93 90 92 94 95 99 99 100 100 100 100 97 84 75 63 85 84 95 83 79 82 Engine 1 | . 14 7 . . 3 . . . . . . 1 5 5 5 5 5 5 . . . . . . . . Core 2 | . . 6 14 14 5 7 7 7 7 3 5 3 . . . . . . 4 3 . . . . . . Reactor 3 | . . . . . . . . . . . . . . . . . . . . . 3 4 4 6 7 6 Treads 3 | . 14 14 14 14 17 1 . . . . . . . . . . . . . . . . . . . . Leg 5 | . . . . . . . . . . . . . . . . . . . . . . . . 10 16 22 Wheel 3 | . 14 14 14 14 17 1 . . . . . . . . . . . . . . . . . . . . Hover 1 | . . . . . . . . . . . . . . . . . . . . . 17 . . . . . Flight 14 | . . . . . . 34 37 38 38 37 41 40 41 41 41 41 34 26 20 19 9 27 34 11 . . Device 11 | . 5 . . . 8 3 5 7 7 5 5 5 5 5 5 4 9 10 9 6 16 16 19 11 23 23 Storage 6 | . 14 14 14 14 9 7 7 7 7 5 5 5 5 5 5 5 5 5 5 4 4 4 4 4 4 3 Processor 13 | . 8 14 14 14 8 5 13 15 15 16 17 17 17 17 17 17 15 15 15 21 21 17 17 15 8 4 Hackware 3 | . . . . . 1 7 7 7 7 10 5 9 11 11 11 11 15 15 13 5 1 . 1 2 . . Protection 5 | . . . . . 6 7 1 . . . 5 . . . . . . . . . 2 4 4 10 8 10 Energy Gun 2 | . 14 12 14 14 1 . . . . . . . . . . . . . . . . 7 7 2 2 2 Ballistic Gun 5 | . 14 13 14 14 15 13 2 7 9 9 5 5 5 5 5 5 4 . . . . . . 3 3 4 Ballistic Cannon 1 | . . . . . . . 4 . . . . . . . . . . . . . 2 . . . 5 4 Peak Build Rating 292 | 7 7 12 12 12 27 38 42 39 43 72 67 80 78 80 84 80 89 74 74 67 158 153 169 272 292 281 Average Rating 129 | 6 6 9 12 12 23 32 37 39 40 64 65 75 78 78 78 78 86 73 64 56 124 134 162 226 277 236 On Entrance 74 | 6 7 7 12 12 12 22 38 39 39 43 66 65 78 78 78 78 78 73 74 52 64 122 152 169 268 277 Avg Prop Armor Cover (%) 6 | 13 13 12 13 13 15 14 . . . 4 . 2 3 . 3 3 . . . . 1 3 4 3 . 9 Naked Turns . | . . . . . . . . . . . . . . . . . . . . . . . . . . . Heaviest Build 135 | 14 14 15 13 13 38 25 25 20 23 38 35 39 31 31 31 33 32 27 27 17 64 39 33 118 132 135 Greatest Support 222 | 16 16 16 16 16 44 28 26 26 27 40 40 40 33 40 40 41 43 28 28 33 78 62 62 210 210 222 Greatest Overweight (x) 7 | . . . . . 2 . 1 . . . . . . . . . . . 1 . 7 . . 1 . 1 Average Overweight (x) . | . . . . . . . . . . . . . . . . . . . . . . . . . . . Largest Inventory Capacity 25 | 8 8 8 8 8 10 10 10 10 10 10 10 10 10 10 10 10 10 10 10 10 10 5 5 25 25 25 Average Capacity 13 | 8 8 8 8 8 9 10 10 10 10 10 10 10 10 10 10 10 10 10 10 10 9 5 5 17 25 23 Most Carried 25 | 7 8 8 8 8 10 10 10 9 10 10 10 10 10 10 10 10 10 10 10 10 10 5 5 25 25 22 Average Carried 11 | 3 6 7 8 8 9 8 8 9 9 9 9 9 10 10 9 10 9 9 9 9 7 4 5 14 22 15 Final Capacity 25 | 8 8 8 8 8 10 10 10 10 10 10 10 10 10 10 10 10 10 10 10 10 5 5 5 25 25 5 Final Carried 23 | 3 8 8 8 8 9 10 9 9 10 9 9 10 10 10 10 10 10 10 10 8 5 5 5 23 21 4 Class Distribution -------------------- 24% | Scavenger-Mutant 15% | Mutant 15% | Hacker-Scout 7% | Scavenger-Gunner 6% | Sprinter 5% | Scout 3% | Scavenger-Sprinter 3% | Hacker-Sprinter 3% | Scavenger-Skirmisher 3% | Hacker-Mutant Dominant Class ---------------- Mutant | -10/Materials Mutant | -10/Mines Mutant | -10/Exiles Mutant | -9/Mines Scavenger-Mutant | -8/Materials Sprinter | -7/Factory Sprinter | -7/Storage Commander-Sprinter | -7/Recycling Sprinter | -7/Scraptown Hacker-Scout | -5/Factory Sprinter | -5/Waste Hacker-Scout | -5/Factory Hacker-Scout | -5/Upper Caves Hacker-Scout | -5/Upper Caves Hacker-Scout | -5/Zhirov Hacker-Scout | -4/Proximity Caves Hacker-Scout | -4/Factory Hacker-Scout | -4/Waste Hacker-Scout | -4/Factory Scavenger-Scout | -3/Research Scout | -3/Testing Scavenger-Sprinter | -2/Research Infiltrator-Scout | -2/Quarantine Scavenger-Mutant | -2/Protoforge Scavenger-Gunner | -1/Access Scavenger-Gunner | -1/Command Resources | -11 -10 -10 -10 -9 -8 -7 -7 -7 -7 -5 -5 -5 -5 -5 -5 -4 -4 -4 -4 -3 -3 -2 -2 -2 -1 -1 ----------- Run | Yrd Mat Min Exi Min Mat Fac Sto Rec Scr Fac Was Fac Upp Upp Zhi Pro Fac Was Fac Res Tes Res Qua Frg Acc Com Matter Collected 12803 | 258 100 144 . 10 1562 69 564 . 42 106 262 268 10 100 . . 368 . 217 . 950 65 . 3368 1391 2949 Remotely 338 | . . . . . . . . . . . . . . . . . . . . . . . . . . 338 Salvage Created 14864 | 80 238 161 . 39 2773 69 427 . . 141 . 509 10 139 . . 368 . 76 . 1365 200 . 4454 1554 2261 Parts 652 | 5 16 12 . 1 143 2 18 . . 17 . 15 . 4 . . 10 . 5 . 59 7 . 209 56 73 Haulers Intercepted 21 | . 2 . . . 6 1 2 . . . . 4 . . . . . . . . 2 . . . 4 . Recyclers Shooed 6 | 1 . . . . . . 2 . . 2 . . . . . . . . . . . . . . . 1 Parts Field Recycled . | . . . . . . . . . . . . . . . . . . . . . . . . . . . Retrieved Matter . | . . . . . . . . . . . . . . . . . . . . . . . . . . . Parts Self-Destructed . | . . . . . . . . . . . . . . . . . . . . . . . . . . . Prevented . | . . . . . . . . . . . . . . . . . . . . . . . . . . . Parts Restored 15 | . . . . . . . . . . . . . . . . . . . . . . . . 8 7 . Faulty 15 | . . . . . . . . . . . . . . . . . . . . . . . . 8 7 . Kills | -11 -10 -10 -10 -9 -8 -7 -7 -7 -7 -5 -5 -5 -5 -5 -5 -4 -4 -4 -4 -3 -3 -2 -2 -2 -1 -1 ------- Run | Yrd Mat Min Exi Min Mat Fac Sto Rec Scr Fac Was Fac Upp Upp Zhi Pro Fac Was Fac Res Tes Res Qua Frg Acc Com Combat Hostiles Destroyed 222 | . 5 5 . 1 48 . 9 . . 5 . 2 . . . . . . 3 . 18 5 . 71 22 28 Melee 8 | . . . . . . . . . . . . 2 . . . . . . 3 . 3 . . . . . Guns 106 | . 5 2 . 1 39 . 2 . . . . . . . . . . . . . . 4 . 28 12 13 Cannons 56 | . . . . . . . 6 . . . . . . . . . . . . . 13 . . 17 10 10 AOE 37 | . . 3 . . 9 . . . . 5 . . . . . . . . . . 1 . . 18 . 1 Classes Destroyed 25 | 2 3 1 . . 6 . . . . . . 1 . . . . 1 . . . 1 . . 8 2 . Worker 24 | . . 1 . . 2 1 1 . . 3 . 1 . . . . 1 . . . 2 . . 2 5 5 Builder 6 | . . . . . 1 . . . . 1 . . . . . . . . . . 2 . . 1 1 . Tunneler 4 | 1 . 2 . . 1 . . . . . . . . . . . . . . . . . . . . . Hauler 21 | . 2 . . . 6 1 2 . . . . 4 . . . . . . . . 2 . . . 4 . Recycler 17 | 1 . . . . 6 . 2 . . . . . . . . . 2 . . . 2 . . . 1 3 Carrier 1 | . . . . . . . . . . . . . . . . . . . . . . . . 1 . . Mechanic 3 | . . . . . 1 . . . . . . . . . . . . . . . . . . 2 . . Operator 3 | . . . . . 1 . . . . . . . . . . . . . . . . . . 2 . . Drone 6 | . . . . . . . . . . . . . . . . . . . . . . . . 6 . . Watcher 3 | . . . . . . . . . . . . . . . . . 1 . . . 2 . . . . . Swarmer 48 | . 3 3 . . 10 . 6 . . 5 . . . . . . . . 3 . 3 5 . . 10 . Saboteur 1 | . . . . . . . . . . . . . . . . . . . . . . . . 1 . . Grunt 68 | . 2 2 . 1 29 . 1 . . . . . . . . . . . . . 6 . . 16 4 7 Brawler 3 | . . . . . . . . . . . . . . . . . . . . . . . . 2 1 . Duelist 7 | . . . . . 1 . . . . . . . . . . . . . . . 1 . . 3 1 1 Protector 4 | . . . . . . . . . . . . . . . . . . . . . . . . 3 . 1 Researcher 3 | . . . . . . . . . . . . . . . . . . . . . 1 . . 2 . . Sentry 17 | . . . . . 7 . 2 . . . . . . . . . . . . . . . . 8 . . Specialist 1 | . . . . . . . . . . . . . . . . . . . . . . . . . 1 . Hunter 8 | . . . . . 1 . . . . . . . . . . . . . . . . . . 2 . 5 Programmer 26 | . . . . . . . . . . . . 2 . . . . . . . . 8 . . 5 2 9 Heavy 2 | . . . . . . . . . . . . . . . . . . . . . . . . . 1 1 Q-Series 7 | . . . . . . . . . . . . . . . . . . . . . . . . 5 2 . M Guard 2 | . . . . . . . . . . . . . . . . . . . . . . . . . . 2 Hotshot 2 | . . . . . . . . . . . . . . . . . . . . . . . . 2 . . Decapitator 11 | . . . . . . . . . . . . . . . . . . . . . . . . 11 . . Immortal 4 | . . . . . . . . . . . . . . . . . . . . . . . . 4 . . Combat Programmer 2 | . . . . . . . . . . . . . . . . . . . . . . . . . . 2 V-Series 3 | . . . . . . . . . . . . . . . . . . . . . . . . 3 . . Best Kill Streak 12 | 2 2 3 . 1 9 1 7 . . 6 . 2 . . . . 2 . 3 . 6 5 . 12 6 9 Combat Bots Only 10 | . 2 3 . 1 6 . 3 . . 5 . 2 . . . . . . 3 . 4 5 . 10 5 6 Max Kills in Single Turn 4 | 1 1 2 . 1 4 1 1 . . 3 . 1 . . . . 1 . 1 . 2 1 . 4 2 4 Gunslinging . | . . . . . . . . . . . . . . . . . . . . . . . . . . . Exploded 4 | . . 2 . . 4 . . . . 3 . . . . . . . . . . 1 . . 4 . 1 Melee 1 | . . . . . . . . . . . . 1 . . . . . . 1 . 1 . . . . . Uniques/NPCs Destroyed . | . . . . . . . . . . . . . . . . . . . . . . . . . . . Combat | -11 -10 -10 -10 -9 -8 -7 -7 -7 -7 -5 -5 -5 -5 -5 -5 -4 -4 -4 -4 -3 -3 -2 -2 -2 -1 -1 -------- Run | Yrd Mat Min Exi Min Mat Fac Sto Rec Scr Fac Was Fac Upp Upp Zhi Pro Fac Was Fac Res Tes Res Qua Frg Acc Com Hostile Shots Fired 1915 | . 20 15 . 7 196 . 104 . . 18 . 33 . 5 . 14 20 . 45 14 124 23 8 592 160 517 Missed 584 | . 8 5 . 6 56 . 34 . . 5 . 18 . 1 . 5 13 . 17 5 34 12 3 184 31 147 Intercepted 16 | . . . . . . . . . . . . . . . . . . . . . . . . . . 16 Hits 1331 | . 12 10 . 1 140 . 70 . . 13 . 15 . 4 . 9 7 . 28 9 90 11 5 408 129 370 Melee 71 | . . . . . 1 . . . . . . . . . . . . . . . . . . 63 1 6 Projectile 1260 | . 12 10 . 1 139 . 70 . . 13 . 15 . 4 . 9 7 . 28 9 90 11 5 345 128 364 AOE 47 | . . . . . . . . . . . . . . . . . . . . . . . . 43 . 4 Critical Strikes 101 | . . . . . 8 . . . . . . 1 . . . . . . 1 . 6 . . 53 2 30 Actively Blocked 45 | . . . . . . . . . . . . . . . . . . . . . . . . 23 1 21 Part Disruptions 21 | . . . . . . . . . . . . . . . . . . . . . . . . 2 . 19 Damage Taken 35027 | . 121 162 . 17 2070 . 486 . . 253 60 275 . 79 . 189 141 . 508 194 2108 247 72 14251 2946 10848 Core 4104 | . 11 24 . . 270 . 132 . . 86 . 55 . . . 68 28 . 189 109 279 44 19 1156 192 1442 Absorbed by Shields 1225 | . . . . . . . 208 . . . . . . . . . . . . . . . . 1017 . . Ignored by Resistances 407 | . . . . . 12 . . . . . . . . . . . . . . . 100 . . . . 295 Regen/Repaired (Parts) 6560 | . . . . . 242 . . . . . . 18 . . . . . . 76 . 42 23 . 3108 665 2386 Core Remaining (%) 70 | 100 . . . 86 50 . . . 81 . . . . . . 79 . . 81 . 70 . . 15 . . Volleys Fired 822 | 6 31 11 . 3 171 3 45 . . 24 . 17 . . . . 1 . . . 62 21 2 236 66 123 Largest 4 | 2 2 2 . 2 2 2 2 . . 2 . 1 . . . . 1 . . . 2 2 2 2 3 4 Hottest 300 | 60 60 70 . 60 63 46 120 . . 113 . 225 . . . . 5 . . . 200 140 140 210 260 300 Shots Fired 1469 | 12 61 20 . 6 335 6 54 . . 33 . 17 . . . . 1 . . . 69 33 3 398 136 285 Gun 1056 | 12 60 17 . 6 329 6 16 . . 17 . 2 . . . . . . . . 8 28 2 302 87 164 Cannon 372 | . . . . . . . 38 . . 7 . 15 . . . . . . . . 61 5 1 79 49 117 Launcher 36 | . 1 3 . . 6 . . . . 5 . . . . . . . . . . . . . 17 . 4 Special 5 | . . . . . . . . . . 4 . . . . . . 1 . . . . . . . . . Kinetic 1007 | 6 30 8 . 3 296 6 45 . . 17 . . . . . . . . . . 47 . . 239 84 226 Thermal 256 | 6 30 9 . 3 33 . 9 . . 7 . 17 . . . . . . . . 14 5 1 65 29 28 Explosive 36 | . 1 3 . . 6 . . . . 5 . . . . . . . . . . . . . 17 . 4 Electromagnetic 165 | . . . . . . . . . . . . . . . . . . . . . 8 28 2 77 23 27 Robot Hit Streak 53 | 5 9 11 . 17 28 4 14 . . 6 . 4 . . . . . . . . 18 10 1 29 35 53 Robot Miss Streak 6 | 3 2 2 . . 4 1 5 . . 2 . 2 . . . . . . . . 5 1 1 6 1 3 Penetration Max 2 | . . . . . 1 . . . . . . . . . . . . . . . . . . 1 1 2 Secondary Targets 12 | . . . . . 2 . . . . . . . . . . . . . . . . . . 6 3 1 Max Gunslinging Chain 1 | . . . . . 1 . . . . . . . . . . . . . . . . . . 1 1 1 Shots Hit Robots 1103 | 7 40 13 . 6 232 5 36 . . 20 . 19 1 5 . . 8 . 8 . 63 18 1 285 98 238 Core Hits 565 | 3 12 11 . 2 124 3 19 . . 11 . 7 1 2 . . 5 . 3 . 46 10 1 171 43 91 Critical Kills 22 | . . . . . 2 . . . . . . 1 . . . . . . . . 1 . . 9 1 8 Critical Parts Destroyed 42 | . 2 . . . 3 . . . . . . . . . . . . . . . . . . 15 6 16 Critical Strikes 96 | . 2 . . . 5 . 3 . . . . 1 . . . . 1 . 1 . 7 . . 28 9 39 Burn 4 | . . . . . . . 1 . . . . . . . . . . . . . . . . . . 3 Meltdown 5 | . . . . . . . . . . . . 1 . . . . . . . . 1 . . 3 . . Destroy 70 | . 2 . . . 5 . . . . . . . . . . . . . . . . . . 24 8 31 Blast 8 | . . . . . . . 2 . . . . . . . . . . . . . 2 . . . 1 3 Corrupt 3 | . . . . . . . . . . . . . . . . . . . . . . . . 1 . 2 Sever 6 | . . . . . . . . . . . . . . . . . 1 . 1 . 4 . . . . . Melee Attacks 124 | . . . . . . 3 1 . . . . 30 11 5 . . 31 . 18 . 25 . . . . . Impact . | . . . . . . . . . . . . . . . . . . . . . . . . . . . Slashing 124 | . . . . . . 3 1 . . . . 30 11 5 . . 31 . 18 . 25 . . . . . Piercing . | . . . . . . . . . . . . . . . . . . . . . . . . . . . Sneak Attacks 9 | . . . . . . 1 . . . . . 3 . . . . 4 . . . 1 . . . . . Combat Hostiles . | . . . . . . . . . . . . . . . . . . . . . . . . . . . Follow-up Attacks . | . . . . . . . . . . . . . . . . . . . . . . . . . . . Damage Inflicted 49035 | 94 460 266 . 71 4497 149 928 . . 766 . 878 68 403 . . 550 . 330 . 4029 510 36 16452 5975 12573 Guns 20755 | 94 460 137 . 71 3716 63 234 . . 142 . . . . . . . . . . 92 510 36 7935 2524 4741 Cannons 18198 | . . . . . . . 694 . . 172 . 348 . . . . . . . . 3034 . . 3947 3201 6802 Explosions 7209 | . . 129 . . 781 . . . . 452 . . . . . . . . . . 198 . . 4545 129 975 Melee 2672 | . . . . . . 86 . . . . . 530 68 403 . . 550 . 330 . 705 . . . . . Ramming 201 | . . . . . . . . . . . . . . . . . . . . . . . . 25 121 55 Kinetic 29696 | 36 240 60 . 38 3427 63 764 . . 142 . . . . . . . . . . 2383 . . 7858 4517 10168 Thermal 6469 | 58 220 77 . 33 289 . 164 . . 172 . 348 . . . . . . . . 849 . . 2765 741 753 Explosive 6630 | . . 129 . . 781 . . . . 452 . . . . . . . . . . . . . 4293 . 975 Electromagnetic 3367 | . . . . . . . . . . . . . . . . . . . . . 92 510 36 1511 596 622 Impact . | . . . . . . . . . . . . . . . . . . . . . . . . . . . Slashing 2672 | . . . . . . 86 . . . . . 530 68 403 . . 550 . 330 . 705 . . . . . Piercing . | . . . . . . . . . . . . . . . . . . . . . . . . . . . Highest Corruption 47 | . . . . . . . 1 1 . . . . . . . . . . . . 21 . . 39 7 47 Average Corruption 15 | . . . . . . . 1 1 . . . . . . . . . . . . 15 . . 18 4 19 Corruption Purged 20 | . . . . . . . . . . . . . . . . . . . . . . . . 20 . . Corruption Blocked . | . . . . . . . . . . . . . . . . . . . . . . . . . . . Effects 250 | . . . . . . . 1 . . . . . . . . . . . . . 48 . . 126 18 57 Message Errors 52 | . . . . . . . 1 . . . . . . . . . . . . . 13 . . 21 1 16 Matter Fused 47 | . . . . . . . . . . . . . . . . . . . . . 11 . . 21 6 9 Heat Flow Errors 26 | . . . . . . . . . . . . . . . . . . . . . 3 . . 17 3 3 Energy Discharges 17 | . . . . . . . . . . . . . . . . . . . . . 3 . . 9 3 2 Parts Rejected 10 | . . . . . . . . . . . . . . . . . . . . . 1 . . 3 2 4 Parts Fused 2 | . . . . . . . . . . . . . . . . . . . . . 1 . . . 1 . Data Loss (minor) 22 | . . . . . . . . . . . . . . . . . . . . . 6 . . 13 1 2 Data Loss (major) 12 | . . . . . . . . . . . . . . . . . . . . . 2 . . 7 1 2 Misfires 11 | . . . . . . . . . . . . . . . . . . . . . 5 . . 6 . . Alerts 5 | . . . . . . . . . . . . . . . . . . . . . . . . 4 . 1 Misdirections 14 | . . . . . . . . . . . . . . . . . . . . . 2 . . 5 . 7 Weapon Failures 32 | . . . . . . . . . . . . . . . . . . . . . 1 . . 20 . 11 Overload Shots 2 | . . . . . . . . . . . . 2 . . . . . . . . . . . . . . Overflow Damage 1767 | . . . . . 40 . 6 . . 76 . 50 . 42 . . 68 . 20 . 380 . . 445 390 250 Projectiles 1088 | . . . . . . . 6 . . 13 . . . . . . . . . . 243 . . 250 356 220 Explosions 392 | . . . . . 40 . . . . 63 . . . . . . . . . . 70 . . 195 . 24 Melee 287 | . . . . . . . . . . . . 50 . 42 . . 68 . 20 . 67 . . . 34 6 Knockbacks 71 | . . . . . . . 5 . . . . . . . . . . . . . 20 . . 12 13 21 Impact 1 | . . . . . . . . . . . . . . . . . . . . . . . . . 1 . Kinetic 59 | . . . . . . . 4 . . . . . . . . . . . . . 14 . . 11 12 18 Secondary 11 | . . . . . . . 1 . . . . . . . . . . . . . 6 . . 1 . 3 Self-Inflicted Damage 806 | . . 46 . . 8 . . . . . . . . . . . . . . . 175 . . 475 . 102 Shots 13 | . . 2 . . 1 . . . . . . . . . . . . . . . 2 . . 7 . 1 Rammed . | . . . . . . . . . . . . . . . . . . . . . . . . . . . Targets Rammed 17 | . . . . . . . . . . . . . . . . . . . . . . . . 1 4 12 Kicked 17 | . . . . . . . . . . . . . . . . . . . . . . . . 1 4 12 Crushed . | . . . . . . . . . . . . . . . . . . . . . . . . . . . Highest Temperature 372 | 20 20 18 . 18 26 16 372 . . 341 1 273 5 254 10 149 7 . . . 309 286 20 241 367 360 Average Temperature 88 | 20 11 10 . 10 13 2 121 . . 96 1 89 3 101 5 55 4 . . . 97 142 20 94 86 96 Received Heat Transfer 3571 | . 48 24 . 9 1080 . 105 . . 54 . 63 . 9 . 39 18 . 9 30 63 . 9 967 54 990 Effects 21 | . . . . . . . 2 . . 2 . 1 . 1 . . . . . . 1 2 . 1 2 9 Energy Bleed 5 | . . . . . . . . . . . . . . 1 . . . . . . . 2 . 1 1 . Interference 13 | . . . . . . . . . . 2 . 1 . . . . . . . . 1 . . . . 9 Short Circuit 2 | . . . . . . . 2 . . . . . . . . . . . . . . . . . . . Damage (minor) 1 | . . . . . . . . . . . . . . . . . . . . . . . . . 1 . Siege Activations . | . . . . . . . . . . . . . . . . . . . . . . . . . . . Martial Activations . | . . . . . . . . . . . . . . . . . . . . . . . . . . . Shielding Activations . | . . . . . . . . . . . . . . . . . . . . . . . . . . . Robots Disrupted 2 | . . . . . . . . . . . . . . . . . . . . . . . 1 1 . . Combat Hostiles 1 | . . . . . . . . . . . . . . . . . . . . . . . . 1 . . Robots Corrupted 16 | . . . . . . . 1 . . . . . . . . . . . . . 1 1 . 7 1 5 Combat Hostiles 12 | . . . . . . . 1 . . . . . . . . . . . . . . 1 . 6 . 4 Parts Fried 31 | . . . . . . . 1 . . . . . . . . . . . . . 3 6 . 11 4 6 Impact Corruptions 5 | . . . . . . . 1 . . . . . . . . . . . . . 1 . . . 2 1 Robots Melted 5 | . . . . . . . . . . . . 1 . . . . . . . . 1 . . 3 . . Combat Hostiles 3 | . . . . . . . . . . . . . . . . . . . . . 1 . . 2 . . Parts Melted 8 | . . . . . 1 . . . . . . 1 . . . . . . . . 2 . . 2 2 . Heat Transferred 6388 | 125 500 175 . 75 650 . 398 . . 185 . 370 . . . . . . . . 495 . . 1818 988 609 Parts Sabotaged . | . . . . . . . . . . . . . . . . . . . . . . . . . . . Parts Stolen . | . . . . . . . . . . . . . . . . . . . . . . . . . . . Parts Stripped . | . . . . . . . . . . . . . . . . . . . . . . . . . . . Power Chain Reactions 4 | . . . . . . . . . . . . . . . . . . . . . . . . 3 1 . Alert | -11 -10 -10 -10 -9 -8 -7 -7 -7 -7 -5 -5 -5 -5 -5 -5 -4 -4 -4 -4 -3 -3 -2 -2 -2 -1 -1 ------- Run | Yrd Mat Min Exi Min Mat Fac Sto Rec Scr Fac Was Fac Upp Upp Zhi Pro Fac Was Fac Res Tes Res Qua Frg Acc Com Maximum Alert Level 4 | . . . . . 3 2 2 . . . . 1 . . . . . . . . 2 1 1 4 4 4 Low Security (%) 46 | 100 100 100 . 100 40 . 31 100 . 100 100 99 . . . . 100 100 100 100 70 . 20 27 . . Level 1 17 | . . . . . 22 13 65 . . . . . . . . . . . . . 14 100 79 29 . . Level 2 13 | . . . . . 18 86 2 . . . . . . . . . . . . . 14 . . 20 29 . Level 3 11 | . . . . . 18 . . . . . . . . . . . . . . . . . . 14 53 8 Level 4 11 | . . . . . . . . . . . . . . . . . . . . . . . . 8 17 91 Level 5 . | . . . . . . . . . . . . . . . . . . . . . . . . . . . High Security . | . . . . . . . . . . . . . . . . . . . . . . . . . . . Max Security . | . . . . . . . . . . . . . . . . . . . . . . . . . . . Peak Influence 1511 | 5 72 84 . 20 958 428 403 148 . 179 77 204 . . . . 52 30 37 9 435 385 262 1274 1446 1511 Initial 911 | . . 16 . . 3 428 183 148 . . 62 23 . . . . . 15 14 9 . 237 212 23 764 911 Average 392 | . 28 28 . 6 353 409 252 148 . 83 45 32 . . . . 14 18 5 1 159 305 193 454 865 1302 Influence Increases 9696 | 10 267 149 . 20 1534 67 630 . . 395 51 410 . 60 . . 218 15 129 . 858 281 60 2257 1174 1111 Destroy 0b10 Robot/C 4540 | . 100 100 . 20 960 . 280 . . 100 . 40 . . . . . . 60 . 380 100 . 1420 440 540 Destroy 0b10 Robot/NC 430 | 10 10 15 . . 90 10 25 . . 20 . 25 . . . . 20 . . . 50 . . 50 55 50 Destroy Leader 804 | . 24 20 . . 212 2 84 . . 10 . 16 . . . . 2 . . . 58 10 . 180 76 110 Allied During Kill 83 | . . . . . . . 77 . . . . . . . . . . . . . . . . 6 . . Successful Hack 283 | . 5 . . . 10 23 35 . . 34 . 25 . . . . 40 . 10 . 49 24 . 28 . . Select Force Hacks 120 | . 60 . . . 60 . . . . . . . . . . . . . . . . . . . . . Disable Machine 675 | . 15 . . . 60 . 45 . . 30 . 15 . . . . . . . . 150 15 15 240 45 45 Anti-Garrison Action 150 | . . . . . . . . . . . . . . . . . . . . . . . . . 150 . Destroy Structure 1186 | . 8 14 . . 37 2 9 . . 66 36 34 . . . . 36 . 14 . 96 12 . 243 243 336 Partial Spotted 330 | . . . . . 15 15 15 . . 30 15 75 . . . . 45 15 15 . 30 45 . 15 . . Lose Combat Pursuer 1095 | . 45 . . . 90 15 60 . . 105 . 180 . 60 . . 75 . 30 . 45 75 45 75 165 30 Influence Decreases 8434 | 10 225 191 . 10 602 604 652 235 148 216 197 247 113 57 86 . 174 39 131 18 435 326 396 1025 1024 1273 Entered New Map 2893 | . . 26 . . 7 514 222 235 148 . 117 10 73 17 86 . . 29 6 9 . 186 166 19 510 513 Time Decay 4148 | 10 225 165 . 10 535 90 190 . . 150 70 227 40 40 . . 147 10 75 9 355 140 80 696 474 410 Lost Part 937 | . . . . . 60 . 20 . . 10 10 . . . . . 27 . 50 . 80 . . 290 40 350 Lost Ally 260 | . . . . . . . 220 . . 10 . 10 . . . . . . . . . . . 20 . . Purge Threat 196 | . . . . . . . . . . 46 . . . . . . . . . . . . 150 . . . Squads Dispatched 85 | . 3 . . . 11 2 3 . . 3 . 6 . . . . 8 . 3 2 4 3 1 17 13 6 Investigation 28 | . 2 . . . 6 2 1 . . 2 . 4 . . . . 5 . 1 2 1 1 . . 1 . Extermination 22 | . . . . . . . 1 . . . . 2 . . . . 2 . 1 . 2 2 1 6 2 3 Reinforcement 18 | . 1 . . . 4 . 1 . . 1 . . . . . . 1 . 1 . 1 . . 2 5 1 Assault 17 | . . . . . 1 . . . . . . . . . . . . . . . . . . 9 5 2 Garrison . | . . . . . . . . . . . . . . . . . . . . . . . . . . . Intercept . | . . . . . . . . . . . . . . . . . . . . . . . . . . . Searches Triggered . | . . . . . . . . . . . . . . . . . . . . . . . . . . . Construction Impeded 3 | . . . . . 2 . . . . 1 . . . . . . . . . . . . . . . . Haulers Reinforced 2 | . . . . . . . . . . . . . . . . . . . . . . . . . 2 . Active Scanning Responses . | . . . . . . . . . . . . . . . . . . . . . . . . . . . Cargo Convoy Interrupts . | . . . . . . . . . . . . . . . . . . . . . . . . . . . Stealth | -11 -10 -10 -10 -9 -8 -7 -7 -7 -7 -5 -5 -5 -5 -5 -5 -4 -4 -4 -4 -3 -3 -2 -2 -2 -1 -1 --------- Run | Yrd Mat Min Exi Min Mat Fac Sto Rec Scr Fac Was Fac Upp Upp Zhi Pro Fac Was Fac Res Tes Res Qua Frg Acc Com Distress Signals 23 | . 1 . . . 3 . 3 . . 5 . 3 . . . . 2 . . . 1 1 1 1 2 . Communications Jammed 16 | . . . . . . . . . . . . . . . . . . . . . 2 3 . 11 . . Distress Signals 16 | . . . . . . . . . . . . . . . . . . . . . 2 3 . 11 . . Times Spotted 454 | . 17 6 . 2 66 1 21 . . 34 1 32 . 5 . 5 17 3 13 6 27 13 6 106 34 39 Peak Tracking Total 17 | . 3 3 . 2 7 1 4 . . 13 1 17 . 4 . 5 11 3 7 6 6 4 3 11 7 8 Tactical Retreats 46 | . 2 . . . 4 1 3 . . 5 1 6 . 1 . . 2 . 2 . 2 3 1 4 7 2 Traps | -11 -10 -10 -10 -9 -8 -7 -7 -7 -7 -5 -5 -5 -5 -5 -5 -4 -4 -4 -4 -3 -3 -2 -2 -2 -1 -1 ------- Run | Yrd Mat Min Exi Min Mat Fac Sto Rec Scr Fac Was Fac Upp Upp Zhi Pro Fac Was Fac Res Tes Res Qua Frg Acc Com Traps Triggered 26 | . . . . . 2 1 1 . . 3 . 1 . . . . 1 . 2 . 3 . . 8 2 2 Indirectly . | . . . . . . . . . . . . . . . . . . . . . . . . . . . Trap Hack Attempts . | . . . . . . . . . . . . . . . . . . . . . . . . . . . Triggered . | . . . . . . . . . . . . . . . . . . . . . . . . . . . Disarmed . | . . . . . . . . . . . . . . . . . . . . . . . . . . . Reprogrammed . | . . . . . . . . . . . . . . . . . . . . . . . . . . . Reused . | . . . . . . . . . . . . . . . . . . . . . . . . . . . Traps Extracted . | . . . . . . . . . . . . . . . . . . . . . . . . . . . Installed . | . . . . . . . . . . . . . . . . . . . . . . . . . . . Triggered . | . . . . . . . . . . . . . . . . . . . . . . . . . . . Machines | -11 -10 -10 -10 -9 -8 -7 -7 -7 -7 -5 -5 -5 -5 -5 -5 -4 -4 -4 -4 -3 -3 -2 -2 -2 -1 -1 ---------- Run | Yrd Mat Min Exi Min Mat Fac Sto Rec Scr Fac Was Fac Upp Upp Zhi Pro Fac Was Fac Res Tes Res Qua Frg Acc Com Machines Disabled 55 | . 1 . . . 4 . 3 . . 2 . 1 . . . . . . . . 12 1 1 23 4 3 Max in Single Turn 2 | . 1 . . . 1 . 1 . . 1 . 1 . . . . . . . . 2 1 1 2 1 1 Garrison Access 3 | . . . . . . . . . . 1 . . . . . . . . . . . . . 1 1 . Energy Cycler 1 | . . . . . . . . . . . . . . . . . . . . . . . . . 1 . Machines Repaired . | . . . . . . . . . . . . . . . . . . . . . . . . . . . Machines Dismantled . | . . . . . . . . . . . . . . . . . . . . . . . . . . . Machines Sabotaged . | . . . . . . . . . . . . . . . . . . . . . . . . . . . Overloaded Fab Kills . | . . . . . . . . . . . . . . . . . . . . . . . . . . . Hacking | -11 -10 -10 -10 -9 -8 -7 -7 -7 -7 -5 -5 -5 -5 -5 -5 -4 -4 -4 -4 -3 -3 -2 -2 -2 -1 -1 --------- Run | Yrd Mat Min Exi Min Mat Fac Sto Rec Scr Fac Was Fac Upp Upp Zhi Pro Fac Was Fac Res Tes Res Qua Frg Acc Com Machines Accessed 115 | . 6 1 1 . 9 5 9 . 3 9 . 9 . . 4 . 15 . 4 3 9 10 7 5 5 1 Terminals 64 | . 4 . . . 5 3 8 . . 6 . 4 . . . . 8 . . 1 5 7 5 3 4 1 Fabricators 11 | . . . . . . 2 . . . 2 . 2 . . . . 2 . 1 1 1 . . . . . Repair Stations 10 | . . . . . 1 . 1 . . . . 1 . . . . . . 2 . 1 1 1 1 1 . Recycling Units 12 | . 2 . . . 2 . . . . . . 2 . . . . 4 . 1 1 . . . . . . Scanalyzers 6 | . . . . . 1 . . . . . . . . . . . 1 . . . 2 1 1 . . . Garrison Access 3 | . . . . . . . . . . 1 . . . . . . . . . . . 1 . 1 . . Total Hacks 242 | . 15 1 1 . 21 9 17 . 3 19 . 18 . . 17 . 37 . 15 8 18 15 11 9 6 2 Successful 133 | . 6 1 1 . 12 7 7 . 3 12 . 13 . . 17 . 20 . 9 1 8 3 3 8 1 1 Failed 109 | . 9 . . . 9 2 10 . . 7 . 5 . . . . 17 . 6 7 10 12 8 1 5 1 Catastrophic 31 | . 1 . . . 2 1 2 . . 1 . 2 . . . . 3 . . 2 2 7 4 . 4 . Database Lockouts . | . . . . . . . . . . . . . . . . . . . . . . . . . . . Manual 92 | . 13 . . . 9 6 8 . . 10 . 11 . . . . 16 . 1 4 1 3 4 3 3 . Terminals 139 | . 13 . . . 12 6 15 . . 15 . 8 . . . . 25 . . 2 10 10 9 7 5 2 Fabricators 25 | . . . . . . 3 . . . 3 . 6 . . . . 5 . 3 4 1 . . . . . Repair Stations 27 | . . . . . 4 . 2 . . . . 2 . . . . . . 10 . 3 3 1 1 1 . Recycling Units 15 | . 2 . . . 2 . . . . . . 2 . . . . 5 . 2 2 . . . . . . Scanalyzers 11 | . . . . . 3 . . . . . . . . . . . 2 . . . 4 1 1 . . . Garrison Access 3 | . . . . . . . . . . 1 . . . . . . . . . . . 1 . 1 . . Terminal Hacks 61 | . 2 1 1 . 2 3 6 . 3 5 . 2 . . 17 . 7 . . . 2 2 2 5 . 1 Record 8 | . . . 1 . . . . . 2 . . . . . 5 . . . . . . . . . . . Part Schematic 7 | . . . . . . . . . . 1 . 1 . . 4 . 1 . . . . . . . . . Robot Analysis 6 | . . . . . 1 . 1 . . . . . . . 4 . . . . . . . . . . . Prototype ID Bank 8 | . 1 . . . 1 . . . . 1 . . . . 4 . . . . . . . . 1 . . Open Door 5 | . . 1 . . . . 3 . . . . . . . . . . . . . . . . . . 1 Open DSF 1 | . . . . . . . . . . . . . . . . . . . . . . 1 . . . . Branch Access Points 3 | . . . . . . 1 1 . . 1 . . . . . . . . . . . . . . . . Terminal Index 3 | . . . . . . . . . . 1 . 1 . . . . 1 . . . . . . . . . Repair Station Index 1 | . . . . . . . . . . . . . . . . . 1 . . . . . . . . . Alert Level 3 | . . . . . . . . . . . . . . . . . 1 . . . 1 . 1 . . . Unreport Threat 2 | . . . . . . . . . . 1 . . . . . . . . . . . . 1 . . . Locate Traps 3 | . . . . . . 2 . . . . . . . . . . . . . . . . . 1 . . Dispatch Records 1 | . . . . . . . . . . . . . . . . . . . . . 1 . . . . . Hauler Manifests 1 | . . . . . . . . . . . . . . . . . 1 . . . . . . . . . Registered Prototypes 1 | . . . . . . . . . . . . . . . . . . . . . . 1 . . . . Zone Layout 6 | . 1 . . . . . 1 . . . . . . . . . 2 . . . . . . 2 . . Proto ID Catalog 2 | . . . . . . . . . 1 . . . . . . . . . . . . . . 1 . . Fabricator Hacks 17 | . . . . . . 1 . . . 3 . 4 . . . . 4 . 3 1 1 . . . . . Network Status 5 | . . . . . . 1 . . . . . 1 . . . . 1 . 1 . 1 . . . . . Load Schematic 7 | . . . . . . . . . . 1 . 2 . . . . 2 . 1 1 . . . . . . Build 5 | . . . . . . . . . . 2 . 1 . . . . 1 . 1 . . . . . . . Repair Station Hacks 11 | . . . . . 2 . . . . . . 2 . . . . . . 4 . 2 . . 1 . . Scan Component 5 | . . . . . 1 . . . . . . 1 . . . . . . 2 . 1 . . . . . Repair 5 | . . . . . 1 . . . . . . 1 . . . . . . 2 . 1 . . . . . Refit 1 | . . . . . . . . . . . . . . . . . . . . . . . . 1 . . Recycling Unit Hacks 1 | . . . . . . . . . . . . . . . . . . . 1 . . . . . . . Report Inventory 1 | . . . . . . . . . . . . . . . . . . . 1 . . . . . . . Scanalyzer 7 | . . . . . 3 . . . . . . . . . . . 2 . . . 2 . . . . . Retrieve Study 7 | . . . . . 3 . . . . . . . . . . . 2 . . . 2 . . . . . Garrison Access Hacks 2 | . . . . . . . . . . 1 . . . . . . . . . . . . . 1 . . Seal Access 2 | . . . . . . . . . . 1 . . . . . . . . . . . . . 1 . . Unauthorized Hacks 34 | . 4 . . . 5 3 1 . . 3 . 5 . . . . 7 . 1 . 1 1 1 1 1 . Terminals 16 | . 2 . . . 2 1 1 . . 3 . 2 . . . . 3 . . . . . 1 1 . . Assimilate 3 | . . . . . . . . . . 1 . 1 . . . . 1 . . . . . . . . . Botnet 13 | . 2 . . . 2 1 1 . . 2 . 1 . . . . 2 . . . . . 1 1 . . Fabricators 3 | . . . . . . 2 . . . . . 1 . . . . . . . . . . . . . . Recompile 3 | . . . . . . 2 . . . . . 1 . . . . . . . . . . . . . . Repair Stations 3 | . . . . . 1 . . . . . . . . . . . . . . . . 1 . . 1 . Patch 3 | . . . . . 1 . . . . . . . . . . . . . . . . 1 . . 1 . Recycling Units 11 | . 2 . . . 2 . . . . . . 2 . . . . 4 . 1 . . . . . . . Tunnel 4 | . 2 . . . 2 . . . . . . . . . . . . . . . . . . . . . Fedlink 7 | . . . . . . . . . . . . 2 . . . . 4 . 1 . . . . . . . Scanalyzers 1 | . . . . . . . . . . . . . . . . . . . . . 1 . . . . . Researchers 1 | . . . . . . . . . . . . . . . . . . . . . 1 . . . . . Garrison Access . | . . . . . . . . . . . . . . . . . . . . . . . . . . . Data Cores Recovered 2 | . . . . . . . . . . . . . . . . . . . . . . . . 2 . . Used . | . . . . . . . . . . . . . . . . . . . . . . . . . . . Hacking Detections 78 | . 4 . . . 7 3 7 . . 7 . 5 . . . . 10 . 2 3 7 9 7 3 4 . Full Trace Events 7 | . . . . . 1 . 1 . . 1 . . . . . . 1 . . 2 1 . . . . . Feedback Events 1 | . . . . . . . . . . . . . . . . . . . . 1 . . . . . . Hackware Fried 1 | . . . . . . . . . . . . . . . . . . . . 1 . . . . . . Feedback Blocked . | . . . . . . . . . . . . . . . . . . . . . . . . . . . Robot Schematics Acquired 1 | . . . . . . . . . . . . . . . . . . . . . . . . 1 . . Robots Built . | . . . . . . . . . . . . . . . . . . . . . . . . . . . Authchips . | . . . . . . . . . . . . . . . . . . . . . . . . . . . Time 169 | . . . . . . . . . . 169 . . . . . . . . . . . . . . . . Total Robot Build Rating . | . . . . . . . . . . . . . . . . . . . . . . . . . . . Part Schematics Acquired 15 | . . . . . . . . . . 1 . 1 . . 4 . 1 . . . 2 . . 6 . . Parts Built 5 | . . . . . . . . . . 2 . 1 . . . . 1 . 1 . . . . . . . Authchips 3 | . . . . . . . . . . 1 . 1 . . . . . . 1 . . . . . . . Time 399 | . . . . . . . . . . 47 . 134 . . . . 134 . 84 . . . . . . . Total Part Build Rating 24 | . . . . . . . . . . 10 . 4 . . . . 4 . 6 . . . . . . . Part Studies Acquired 7 | . . . . . 3 . . . . . . . . . . . 2 . . . 2 . . . . . Parts Repaired 5 | . . . . . 1 . . . . . . 1 . . . . . . 2 . 1 . . . . . Time 211 | . . . . . 38 . . . . . . 25 . . . . . . 86 . 62 . . . . . Parts Recycled . | . . . . . . . . . . . . . . . . . . . . . . . . . . . Recycled Matter . | . . . . . . . . . . . . . . . . . . . . . . . . . . . Retrieved Matter . | . . . . . . . . . . . . . . . . . . . . . . . . . . . Retrieved Components . | . . . . . . . . . . . . . . . . . . . . . . . . . . . Parts Scanalyzed . | . . . . . . . . . . . . . . . . . . . . . . . . . . . Part Schematics Acquired . | . . . . . . . . . . . . . . . . . . . . . . . . . . . Parts Damaged . | . . . . . . . . . . . . . . . . . . . . . . . . . . . Bothacking | -11 -10 -10 -10 -9 -8 -7 -7 -7 -7 -5 -5 -5 -5 -5 -5 -4 -4 -4 -4 -3 -3 -2 -2 -2 -1 -1 ------------ Run | Yrd Mat Min Exi Min Mat Fac Sto Rec Scr Fac Was Fac Upp Upp Zhi Pro Fac Was Fac Res Tes Res Qua Frg Acc Com Used RIF Installer . | . . . . . . . . . . . . . . . . . . . . . . . . . . . Robots Hacked 4 | . . . . . . . . . . 3 . . . . . . 1 . . . . . . . . . Non-combat 4 | . . . . . . . . . . 3 . . . . . . 1 . . . . . . . . . Combat . | . . . . . . . . . . . . . . . . . . . . . . . . . . . Robot Hacks Applied 4 | . . . . . . . . . . 3 . . . . . . 1 . . . . . . . . . find_chute 4 | . . . . . . . . . . 3 . . . . . . 1 . . . . . . . . . Relay Couplers Released 3 | . . . . . . . . . . . . . . . . . . . . . . . . 3 . . Machine Destruction 3 | . . . . . . . . . . . . . . . . . . . . . . . . 3 . . Fabnet Peak Effective % . | . . . . . . . . . . . . . . . . . . . . . . . . . . . Robots Rewired 3 | . . . . . . . 1 . . . . . . . . . . . . . . . 1 1 . . Allies Hacked . | . . . . . . . . . . . . . . . . . . . . . . . . . . . Hacks Repelled . | . . . . . . . . . . . . . . . . . . . . . . . . . . . Allies | -11 -10 -10 -10 -9 -8 -7 -7 -7 -7 -5 -5 -5 -5 -5 -5 -4 -4 -4 -4 -3 -3 -2 -2 -2 -1 -1 -------- Run | Yrd Mat Min Exi Min Mat Fac Sto Rec Scr Fac Was Fac Upp Upp Zhi Pro Fac Was Fac Res Tes Res Qua Frg Acc Com Total Allies 33 | . . . . . . . 10 . . 1 19 1 . . . . . . . . . . 1 1 . . Largest Group 19 | . . . . . . . 10 5 . . 19 1 . . . . . . . . . . 1 1 . . Highest-Rated Group 702 | . . . . . . . 173 93 . . 702 10 . . . . . . . . . . 45 64 . . Highest-Rated Ally 64 | . . . . . . . 29 29 . . 50 10 . . . . . . . . . . 45 64 . . Initial UFD Resources 82 | . . . . . . . . . . 38 38 38 52 52 52 56 56 74 74 78 78 80 80 80 82 82 Total Orders 2 | . . . . . . . 1 . . . . 1 . . . . . . . . . . . . . . STAY 1 | . . . . . . . . . . . . 1 . . . . . . . . . . . . . . EXPLORE 1 | . . . . . . . 1 . . . . . . . . . . . . . . . . . . . Ally Attacks 75 | . . . . . . . 34 . . . 21 . . . . . . . . . . . . 20 . . Total Damage 1832 | . . . . . . . 500 . . . 766 . . . . . . . . . . . . 566 . . Kills 8 | . . . . . . . 5 . . . 3 . . . . . . . . . . . . . . . Allies Corrupted 2 | . . . . . . . 2 . . . . . . . . . . . . . . . . . . . Allies Melted . | . . . . . . . . . . . . . . . . . . . . . . . . . . . Intel | -11 -10 -10 -10 -9 -8 -7 -7 -7 -7 -5 -5 -5 -5 -5 -5 -4 -4 -4 -4 -3 -3 -2 -2 -2 -1 -1 ------- Run | Yrd Mat Min Exi Min Mat Fac Sto Rec Scr Fac Was Fac Upp Upp Zhi Pro Fac Was Fac Res Tes Res Qua Frg Acc Com Active Infowar (turns) 10657 | 21 215 . . . . 175 393 16 359 378 149 540 80 87 60 413 410 29 570 131 1082 292 176 2908 1201 972 Optics 10421 | . . . . . . 175 393 16 359 378 149 540 80 87 60 413 410 29 570 131 1082 292 176 2908 1201 972 Sensors 3951 | . . . . . . . . . . 302 . 453 80 72 55 392 410 29 474 70 757 . 155 209 488 5 Seismic 236 | 21 215 . . . . . . . . . . . . . . . . . . . . . . . . . Cloaking 217 | . . . . . . . . . . . . . . . . . . . . . 12 . 23 182 . . Jamming 2783 | . . . . . . . . . . . . . . . . . . . . . 945 292 176 1370 . . Robot Analysis Total 6 | . . . . . 1 . 1 . . . . . . . 4 . . . . . . . . . . . Derelict Logs Recovered 3 | . . 1 . 1 . . . . . . . . . . . 1 . . . . . . . . . . Drone Launches 16 | . . . . . . . 16 . . . . . . . . . . . . . . . . . . . Drone Recoveries 2 | . . . . . . . 2 . . . . . . . . . . . . . . . . . . . Exploration | -11 -10 -10 -10 -9 -8 -7 -7 -7 -7 -5 -5 -5 -5 -5 -5 -4 -4 -4 -4 -3 -3 -2 -2 -2 -1 -1 ------------- Run | Yrd Mat Min Exi Min Mat Fac Sto Rec Scr Fac Was Fac Upp Upp Zhi Pro Fac Was Fac Res Tes Res Qua Frg Acc Com Turns Passed 13275 | 66 608 408 137 46 1554 195 393 16 359 378 149 540 80 87 60 413 410 29 570 131 1082 292 176 2908 1201 987 Spaces Moved 16280 | 41 454 359 136 37 823 471 363 58 1162 772 342 1051 204 292 146 498 813 97 666 310 1511 612 568 3368 654 472 Core 2 | . . . . . . . . . . . . . . . . . . . . . . . . . . 2 Treads . | . . . . . . . . . . . . . . . . . . . . . . . . . . . Legs 2361 | . . . . . . . . . . . . . . . . . . . . . . . . 1237 654 470 Wheels 1863 | 41 454 359 136 37 823 13 . . . . . . . . . . . . . . . . . . . . Hover 1007 | . . . . . . . . . . . . . . . . . . . . . 1007 . . . . . Flight 11047 | . . . . . . 458 363 58 1162 772 342 1051 204 292 146 498 813 97 666 310 504 612 568 2131 . . Fastest Speed 7 | 100 100 100 100 100 90 28 27 28 28 23 23 23 25 18 23 19 19 28 28 26 20 7 7 7 92 80 Average Speed 45 | 100 100 100 100 100 103 29 28 28 28 26 23 24 25 22 24 24 22 28 30 27 44 24 23 47 94 99 Slowest Speed 525 | 100 100 100 100 100 130 95 99 28 28 31 23 25 25 25 25 25 28 28 107 28 525 26 25 190 95 180 Overloaded Moves 339 | . . . . . . . . . . . . . . 46 . 43 154 . . . . 17 15 64 . . Propulsion Burnouts . | . . . . . . . . . . . . . . . . . . . . . . . . . . . Robots Hopped 87 | . . . . . . 2 . . . 22 2 7 . 2 . 4 13 2 4 5 3 5 3 13 . . Potential Cave-ins 2 | . . . . . . . . . . . . . . . . . . . . . . . . . 2 . Cave-ins Triggered . | . . . . . . . . . . . . . . . . . . . . . . . . . . . Exploration Rate (%) 42 | 3 68 76 49 14 62 17 59 12 90 20 94 29 45 33 61 65 19 75 12 10 94 17 64 42 14 15 Regions Visited 26 Branch Regions 14 Pre-discovered Areas 14 | . 2 2 1 1 2 . 1 . 1 . . 1 . . 3 . . . . . . . . . . . Known Exits Taken 14 | . . . . . . 1 1 . . . . 1 1 1 1 1 . . 1 1 1 1 1 1 1 . Unknown Exits Taken 8 | 1 1 1 1 1 1 . . 1 1 . . . . . . . . . . . . . . . . . Scrap Searched 5 | . . . . 1 . . . . 3 . . . . . . 1 . . . . . . . . . . Spaces Dug 101 | . . . . . . 2 . . . 9 . 14 2 . . . 19 . 7 . 2 4 . 12 30 . Terrain Destroyed 605 | . 6 15 . . 30 2 8 . . 33 . 17 2 . . . 19 . 7 . 57 5 . 130 132 142 Melee 42 | . . . . . . 2 . . . . . 12 2 . . . 19 . 7 . . . . . . . Projectile 333 | . . . . . . . 8 . . 10 . 5 . . . . . . . . 11 5 . 79 108 107 AOE 230 | . 6 15 . . 30 . . . . 23 . . . . . . . . . . 46 . . 51 24 35 Terrain Rammed . | . . . . . . . . . . . . . . . . . . . . . . . . . . . Walls Destroyed . | . . . . . . . . . . . . . . . . . . . . . . . . . . . Machines Disabled . | . . . . . . . . . . . . . . . . . . . . . . . . . . . Actions | -11 -10 -10 -10 -9 -8 -7 -7 -7 -7 -5 -5 -5 -5 -5 -5 -4 -4 -4 -4 -3 -3 -2 -2 -2 -1 -1 --------- Run | Yrd Mat Min Exi Min Mat Fac Sto Rec Scr Fac Was Fac Upp Upp Zhi Pro Fac Was Fac Res Tes Res Qua Frg Acc Com Total 20402 | 54 547 389 136 42 1232 519 596 57 1198 883 409 1259 215 301 164 782 983 96 1003 349 1804 710 601 4212 1119 742 Wait 2187 | . 51 8 . 1 124 . 141 . 22 58 65 127 . 2 . 283 141 . 273 37 105 70 1 275 353 50 Move 16096 | 40 453 358 135 36 822 466 362 57 1161 729 338 1036 203 288 145 490 788 93 660 300 1504 603 562 3342 653 472 Hop 73 | . . . . . . 2 . . . 21 1 7 . 1 . 3 12 1 1 4 3 3 2 12 . . Pick Up 135 | . 6 2 . 1 22 9 3 . 5 5 1 7 . . 2 . 3 1 4 1 8 1 . 41 7 6 Fast Attach 154 | 1 1 . . . 11 1 4 . 1 4 . 2 . . 2 . . . 5 3 37 6 6 52 5 13 Attach 98 | 1 . . . . 8 7 4 . . 4 . 3 . . . . 3 . 2 2 7 . . 30 9 18 Detach 71 | 1 1 . . . 2 3 5 . . 1 . 2 . . . . 1 . 2 1 16 . 1 23 5 7 Swap 250 | 2 2 6 1 . 30 2 10 . 3 18 2 22 1 5 11 6 1 . 4 . 9 4 5 80 12 14 Drop 194 | 3 2 4 . 1 42 8 10 . 6 4 2 6 . . 4 . 2 1 4 1 23 2 7 47 5 10 Fire 822 | 6 31 11 . 3 171 3 45 . . 24 . 17 . . . . 1 . . . 62 21 2 236 66 123 Melee 124 | . . . . . . 3 1 . . . . 30 11 5 . . 31 . 18 . 25 . . . . . Ram 1 | . . . . . . . . . . . . . . . . . . . . . . . . . . 1 Kick 17 | . . . . . . . . . . . . . . . . . . . . . . . . 1 4 12 Crush . | . . . . . . . . . . . . . . . . . . . . . . . . . . . Escape Stasis 127 | . . . . . . 15 . . . 15 . . . . . . . . 30 . 5 . . 62 . . Rewire 46 | . . . . . . . 4 . . . . . . . . . . . . . . . 15 11 . 16 Trap . | . . . . . . . . . . . . . . . . . . . . . . . . . . . Miscellaneous 7 | . . . . . . . 7 . . . . . . . . . . . . . . . . . . . Route ------- -11/Scrapyard -10/Materials (discovered 3 exits: [*Mat] / *Min x2) -10/Mines (discovered 3 exits: [*Mat x2] / *Exi) -10/Exiles -9/Mines -8/Materials -7/Factory (discovered 4 exits: [*Fac] / *Sto / *Low x2) -7/Storage -7/Recycling -7/Scraptown (discovered 2 exits: *Fac x2) -5/Factory (discovered 4 exits: *Upp x2 / Ext x2) -5/Waste -5/Factory (discovered 2 exits: *Upp / *Ext) -5/Upper Caves -5/Upper Caves -5/Zhirov -4/Proximity Caves -4/Factory -4/Waste -4/Factory -3/Research (discovered 2 exits: Res / *Tes) -3/Testing -2/Research (discovered 2 exits: *Qua / DSF) -2/Quarantine (discovered 2 exits: [*Sec] / *Frg) -2/Protoforge -1/Access -1/Command History --------- Turn | Location | Event 22 | -11/Scrapyard | Discovered new exit (range 3) 67 | -11/Scrapyard | Entered Materials 237 | -10/Materials | Discovered new exit (range 14) 304 | -10/Materials | Build established: Mutant 471 | -10/Materials | Discovered new exit (range 16) 614 | -10/Materials | Discovered new exit (range 15) 675 | -10/Materials | Entered Mines 701 | -10/Mines | Learned location of Storage (-7) 729 | -10/Mines | Met a Derelict bent on vengeance 818 | -10/Mines | Discovered new exit (range 3) 846 | -10/Mines | Met a Derelict who couldn't figure out how to use a Trap Extractor 923 | -10/Mines | Learned location of Zion (-7) 950 | -10/Mines | Deemed a non-threat by the Exiles lab entrance 950 | -10/Mines | Discovered new exit (range 5) 979 | -10/Mines | Discovered new exit (range 6) 1029 | -10/Mines | Assembled infested the area 1083 | -10/Mines | Entered Exiles 1109 | -10/Exiles | Met 8R-AWN 1126 | -10/Exiles | Met EX-HEX 1166 | -10/Exiles | Met EX-DEC 1211 | -10/Exiles | Discovered new exit (range 11) 1220 | -10/Exiles | Entered Mines 1255 | -9/Mines | Discovered new exit (range 6) 1266 | -9/Mines | Entered Materials 1266 | -8/Materials | Evolved 4 slots: Propulsion x2, Utility x2 1627 | -8/Materials | Build established: Scavenger-Mutant 1786 | -8/Materials | Repaired Hrd. Medium Armor Plating 2466 | -8/Materials | First assault squad dispatched 2804 | -8/Materials | Discovered new exit (range 4) 2820 | -8/Materials | Entered Factory 2820 | -7/Factory | Evolved 2 slots: Propulsion x1, Utility x1 2873 | -7/Factory | Discovered new exit (range 17) 2954 | -7/Factory | Discovered new exit (range 16) 2955 | -7/Factory | Identified exit to Storage 2955 | -7/Factory | Identified exit to Lower Caves 2988 | -7/Factory | Discovered new exit (range 6) 3015 | -7/Factory | Entered Storage 3175 | -7/Storage | Lost 10 allies 3283 | -7/Storage | Assisted by bots powering up and referring to "LRC-V3" 3310 | -7/Storage | Identified exit to Recycling 3387 | -7/Storage | Lost 4 allies 3388 | -7/Storage | Used back door to open Recycling access 3408 | -7/Storage | Entered Recycling 3408 | -7/Recycling | Accompanied by 5 allies 3409 | -7/Recycling | Met a Zionite searching for Scraptown 3417 | -7/Recycling | Scanned before Scraplab entrance 3421 | -7/Recycling | Entered Scraplab 3423 | -7/Recycling | Discovered new exit (range 4) 3424 | -7/Recycling | Entered Scraptown 3424 | -7/Scraptown | System corruption cleaned by C-Scrubber 3459 | -7/Scraptown | Visited TADAMA 3464 | -7/Scraptown | Visited Cyclists 3471 | -7/Scraptown | Visited Shadow of the Wyrm 3517 | -7/Scraptown | Visited Spacefarers 3529 | -7/Scraptown | Visited Junk Repository 3538 | -7/Scraptown | Visited Red Mages 3566 | -7/Scraptown | Discovered new exit (range 13) 3596 | -7/Scraptown | Visited UFD Registry 3596 | -7/Scraptown | Registered with UFD as "Bullettail" 3604 | -7/Scraptown | Visited Abandonware Association 3606 | -7/Scraptown | Learned abandonware demo "OVRCLOCK.EXE" 3617 | -7/Scraptown | Visited Curators Association 3625 | -7/Scraptown | Visited Scrapoid Pod Storage 3631 | -7/Scraptown | Visited Junk Repository 3641 | -7/Scraptown | Visited LU-1G1's Boring Crew 3649 | -7/Scraptown | Visited A0-MCA Data Center 3651 | -7/Scraptown | Given an A- rating by A0-MCA 3658 | -7/Scraptown | Visited DA-N13 Charitable Foundation 3660 | -7/Scraptown | Found DCF Scrap (30 items) 3686 | -7/Scraptown | Visited Infowarlord's Domain 3687 | -7/Scraptown | Found Exp. Signal Interpreter 3693 | -7/Scraptown | Visited Science Guys 3727 | -7/Scraptown | Build established: Sprinter 3741 | -7/Scraptown | Met Optimus 3741 | -7/Scraptown | Accepted into 0bPrime 3782 | -7/Scraptown | Civil war broke out across Scraptown 3782 | -7/Scraptown | Discovered new exit (range 3) 3783 | -7/Scraptown | Entered Factory 3783 | -5/Factory | Evolved 4 slots: Propulsion x2, Utility x2 3847 | -5/Factory | Discovered new exit (range 12) 3856 | -5/Factory | Identified exit to Upper Caves 3856 | -5/Factory | Identified exit to Extension 4081 | -5/Factory | Fabricated Weapon Mount (x2) 4161 | -5/Factory | Manually triggered Chute Trap 4161 | -5/Factory | Sucked down chute 4161 | -5/Factory | Entered Waste 4168 | -5/Waste | Spotted C-40 Crusher 4174 | -5/Waste | Spotted C-40 Crusher 4174 | -5/Waste | Spotted C-40 Crusher 4196 | -5/Waste | Spotted C-40 Crusher 4227 | -5/Waste | Spotted C-40 Crusher 4229 | -5/Waste | Spotted C-40 Crusher 4235 | -5/Waste | Warlord forces began an assault 4293 | -5/Waste | Allies destroyed C-40 Crusher 4307 | -5/Waste | Discovered new exit (range 14) 4310 | -5/Waste | Identified exit to Factory 4310 | -5/Waste | Entered Factory 4328 | -5/Factory | Discovered exit to Upper Caves (range 4) 4340 | -5/Factory | Discovered exit to Extension (range 19) 4400 | -5/Factory | Repaired Imp. Flight Unit 4530 | -5/Factory | Loaded intel: 8 recycling unit locations 4594 | -5/Factory | Learned location of Protoforge (-2) 4780 | -5/Factory | Fabricated Cld. VTOL Module? 4850 | -5/Factory | Entered Upper Caves 4896 | -5/Upper Caves | Discovered new exit (range 10) 4930 | -5/Upper Caves | Identified exit to Upper Caves 4930 | -5/Upper Caves | Entered another Upper Caves area 5016 | -5/Upper Caves | Discovered new exit (range 6) 5017 | -5/Upper Caves | Identified exit to Zhirov 5017 | -5/Upper Caves | Entered Zhirov 5017 | -5/Zhirov | Discovered new exit (range 3) 5022 | -5/Zhirov | Met Zhirov 5027 | -5/Zhirov | Learned location of Testing (-3) 5027 | -5/Zhirov | Learned location of Quarantine (-2) 5027 | -5/Zhirov | Learned location of Command (-1) 5029 | -5/Zhirov | Zhirov requested help retrieving the SGEMP Prototype 5033 | -5/Zhirov | Found Alien Artifact 5033 | -5/Zhirov | Identified Integrated Reactor 5033 | -5/Zhirov | Installed Integrated Reactor, increased core energy generation (+10) 5077 | -5/Zhirov | Identified exit to Proximity Caves 5077 | -5/Zhirov | Entered Proximity Caves 5141 | -4/Proximity Caves | Build established: Hacker-Scout 5477 | -4/Proximity Caves | Attracted the attention of an 0b10 checkpoint 5481 | -4/Proximity Caves | Learned location of 2 exits from Research 5489 | -4/Proximity Caves | Discovered new exit (range 6) 5490 | -4/Proximity Caves | Identified exit to Factory 5490 | -4/Proximity Caves | Entered Factory 5490 | -4/Factory | Evolved 2 slots: Utility x2 5575 | -4/Factory | Discovered new exit (range 21) 5759 | -4/Factory | Loaded intel: 8 recycling unit locations 5789 | -4/Factory | Fabricated Cld. VTOL Module? 5890 | -4/Factory | Lost 3 parts (2n1w) 5900 | -4/Factory | Manually triggered Chute Trap 5900 | -4/Factory | Sucked down chute 5900 | -4/Factory | Entered Waste 5914 | -4/Waste | Spotted C-40 Crusher 5914 | -4/Waste | Spotted C-40 Crusher 5914 | -4/Waste | Spotted C-40 Crusher 5914 | -4/Waste | Spotted C-40 Crusher 5914 | -4/Waste | Spotted C-40 Crusher 5914 | -4/Waste | Spotted C-40 Crusher 5923 | -4/Waste | Discovered new exit (range 22) 5929 | -4/Waste | Identified exit to Factory 5929 | -4/Waste | Entered Factory 5969 | -4/Factory | Watched by a mysterious "MATRIX" hacker. 6020 | -4/Factory | Repaired Broken Adv. Cloaking Device? 6197 | -4/Factory | Fabricated Tri-rail Accelerator? 6377 | -4/Factory | Discovered new exit (range 17) 6419 | -4/Factory | Repaired Cld. VTOL Module 6464 | -4/Factory | Lost 4 parts (1p1n2u) 6472 | -4/Factory | Identified exit to Research 6495 | -4/Factory | Loaded intel: 8 recycling unit locations 6499 | -4/Factory | Entered Research 6499 | -3/Research | Evolved 2 slots: Utility x2 6500 | -3/Research | Identified exit to Research 6500 | -3/Research | Identified exit to Testing 6521 | -3/Research | Found Prototype Device 6521 | -3/Research | Identified Exp. Thermal Shield 6541 | -3/Research | System Shield fried by hacking feedback 6550 | -3/Research | Found Exp. Signal Interpreter 6606 | -3/Research | Spotted B-86 Titan 6630 | -3/Research | Entered Testing 6644 | -3/Testing | Found Prototype Device 6644 | -3/Testing | Identified Exp. EM Disruption Field 6761 | -3/Testing | Lost 6 parts (1p3n2u) 6774 | -3/Testing | Found Prototype Device 6774 | -3/Testing | Identified Exp. Thermal Defense Suite 6786 | -3/Testing | Found Prototype Device 6786 | -3/Testing | Identified Exp. Shield Generator 6787 | -3/Testing | System corruption reached 10% 6851 | -3/Testing | Repaired Imp. Antigrav System 6939 | -3/Testing | Found Spectral Analyzer 6945 | -3/Testing | Spotted Striker 7050 | -3/Testing | Found Exp. Signal Interpreter 7152 | -3/Testing | Discovered exit to Research (range 19) 7176 | -3/Testing | Spotted PG-2DVL4MDUWJ 7228 | -3/Testing | Build established: Scout 7289 | -3/Testing | Scanned by Researcher 7410 | -3/Testing | Found Prototype Energy Cannon 7410 | -3/Testing | Identified Potential Cannon 7581 | -3/Testing | Lost 3 parts (1n1u1w) 7712 | -3/Testing | Entered Research 7712 | -2/Research | Evolved 2 slots: Power x1, Propulsion x1 7854 | -2/Research | Build established: Scavenger-Sprinter 7964 | -2/Research | Identified exit to DSF 7996 | -2/Research | Discovered new exit (range 17) 7996 | -2/Research | Spotted B-90 Cyclops 8004 | -2/Research | Identified exit to Quarantine 8004 | -2/Research | Entered Quarantine 8118 | -2/Quarantine | Spotted Alpha 7 8123 | -2/Quarantine | Found Prototype Hackware 8123 | -2/Quarantine | Identified Exp. Hacking Suite 8164 | -2/Quarantine | Spotted Fortress 8179 | -2/Quarantine | Discovered new exit (range 5) 8179 | -2/Quarantine | Discovered new exit (range 6) 8180 | -2/Quarantine | Identified exit to Protoforge 8180 | -2/Quarantine | Entered Protoforge 8202 | -2/Protoforge | Spotted Hotshot 8202 | -2/Protoforge | Spotted Hotshot 8230 | -2/Protoforge | Spotted AP7-3 8232 | -2/Protoforge | Spotted AP7-3 8353 | -2/Protoforge | Found Prototype Ballistic Gun 8353 | -2/Protoforge | Identified Cep. XC Strikerail 8361 | -2/Protoforge | Found Prototype Device 8361 | -2/Protoforge | Identified Exp. System Purifier 8366 | -2/Protoforge | Found Prototype Storage 8366 | -2/Protoforge | Identified Cep. Chromion Battery 8369 | -2/Protoforge | Found Cep. Chromion Battery 8386 | -2/Protoforge | Spotted Decapitator 8387 | -2/Protoforge | Spotted Decapitator 8388 | -2/Protoforge | Destroyed Decapitator 8391 | -2/Protoforge | Destroyed Decapitator 8398 | -2/Protoforge | Spotted V505-u 8398 | -2/Protoforge | Spotted V256-l 8430 | -2/Protoforge | Spotted Decapitator 8430 | -2/Protoforge | Spotted Decapitator 8430 | -2/Protoforge | Spotted Decapitator 8444 | -2/Protoforge | Superfortress began startup sequence 8472 | -2/Protoforge | Found Prototype Launcher 8472 | -2/Protoforge | Identified Adv. Micro-nuke Launcher 8485 | -2/Protoforge | Lost 7 parts (1p3n1u2w) 8486 | -2/Protoforge | Spotted V509-t 8486 | -2/Protoforge | Spotted V757-w 8487 | -2/Protoforge | Spotted Immortal 8488 | -2/Protoforge | Spotted Immortal 8494 | -2/Protoforge | Spotted V762-q 8505 | -2/Protoforge | Destroyed Decapitator 8511 | -2/Protoforge | Destroyed Decapitator 8511 | -2/Protoforge | Destroyed Decapitator 8535 | -2/Protoforge | Spotted V440-l 8539 | -2/Protoforge | Found Prototype Protection 8539 | -2/Protoforge | Identified Cep. Core Shell 8541 | -2/Protoforge | Found Prototype Processor 8541 | -2/Protoforge | Identified Cep. Projectile Intercept Suite 8547 | -2/Protoforge | Found Prototype Protection 8547 | -2/Protoforge | Identified Cep. RG22 Armor 8551 | -2/Protoforge | Found Cep. RG22 Armor 8580 | -2/Protoforge | Spotted V484-t 8581 | -2/Protoforge | Found Prototype Hackware 8581 | -2/Protoforge | Identified Cep. Network Penetrator 8647 | -2/Protoforge | Spotted Immortal 8647 | -2/Protoforge | Spotted Immortal 8649 | -2/Protoforge | Spotted Decapitator 8649 | -2/Protoforge | Spotted Decapitator 8649 | -2/Protoforge | Spotted Decapitator 8649 | -2/Protoforge | Spotted Decapitator 8686 | -2/Protoforge | Found Cep. Fieldthrust Drive 8695 | -2/Protoforge | Found Cep. Fieldthrust Drive 8729 | -2/Protoforge | Found Prototype Device 8729 | -2/Protoforge | Identified Crosscalibrator 8748 | -2/Protoforge | Found Prototype Energy Cannon 8748 | -2/Protoforge | Identified Cep. Plasma Driver 8750 | -2/Protoforge | Spotted V165-e 8750 | -2/Protoforge | Spotted V821-c 8750 | -2/Protoforge | Spotted V707-s 8750 | -2/Protoforge | Spotted V792-e 8751 | -2/Protoforge | Found Cep. Variable Chargecaster 8772 | -2/Protoforge | Build established: Wizard-Sprinter 8775 | -2/Protoforge | Spotted Decapitator 8775 | -2/Protoforge | Spotted Decapitator 8808 | -2/Protoforge | Destroyed Immortal 8848 | -2/Protoforge | Destroyed Immortal 8855 | -2/Protoforge | Found Prototype Device 8855 | -2/Protoforge | Identified Cep. Antimissile System 8877 | -2/Protoforge | Found Cep. XC Strikerail 8887 | -2/Protoforge | Found Faulty Cep. Lightning Penetrator 8890 | -2/Protoforge | Found Faulty Cep. Lightning Penetrator 8914 | -2/Protoforge | Spotted Decapitator 8914 | -2/Protoforge | Spotted Decapitator 8914 | -2/Protoforge | Spotted V717-c 8914 | -2/Protoforge | Spotted V693-q 9052 | -2/Protoforge | Found Cep. Antigrav Storage Unit 9123 | -2/Protoforge | Destroyed Immortal 9168 | -2/Protoforge | Destroyed Immortal 9221 | -2/Protoforge | System corruption reached 10% 9231 | -2/Protoforge | Destroyed Decapitator 9278 | -2/Protoforge | Found Cep. Biometal Exoskeleton 9287 | -2/Protoforge | Found Faulty Cep. Biometal Exoskeleton 9367 | -2/Protoforge | Found Cep. Helical Railcannon 9369 | -2/Protoforge | Found Cep. Plasma Driver 9374 | -2/Protoforge | Found Faulty Cep. Heavy Railcannon 9397 | -2/Protoforge | Found Faulty Cep. XC Strikerail 9401 | -2/Protoforge | Found Cep. XC Strikerail 9455 | -2/Protoforge | Destroyed V821-c 9488 | -2/Protoforge | Destroyed V165-e 9497 | -2/Protoforge | Core integrity fell below 50% 9511 | -2/Protoforge | Lost 4 parts (1p2u1w) 9525 | -2/Protoforge | Destroyed V792-e 9586 | -2/Protoforge | Found Cep. RG22 Armor 9594 | -2/Protoforge | Found Prototype Processor 9594 | -2/Protoforge | Identified Exp. Core Analyzer 9646 | -2/Protoforge | Found Cep. Heavy Railcannon 9684 | -2/Protoforge | Destroyed Decapitator 9720 | -2/Protoforge | Found Faulty Cep. Lightning Penetrator 9724 | -2/Protoforge | Found Faulty Cep. Lightning Penetrator 9729 | -2/Protoforge | Found Faulty Cep. Helical Railcannon 9747 | -2/Protoforge | Build established: Scavenger-Mutant 9790 | -2/Protoforge | Destroyed Decapitator 9792 | -2/Protoforge | Destroyed Decapitator 9792 | -2/Protoforge | Destroyed Decapitator 9801 | -2/Protoforge | Destroyed Decapitator 9827 | -2/Protoforge | Lost 3 parts (1p2u) 9883 | -2/Protoforge | Found Cep. Arcsight Missile Launcher 9930 | -2/Protoforge | First assault squad dispatched 10016 | -2/Protoforge | System corruption reached 30% 10402 | -2/Protoforge | Found Prototype Device 10402 | -2/Protoforge | Identified Exp. Kinecellerator 10408 | -2/Protoforge | Found Cep. Networked Targeting System 10411 | -2/Protoforge | Found Cep. Weapon Articulator 10420 | -2/Protoforge | Found Prototype Device 10420 | -2/Protoforge | Identified Femtoactuators 10424 | -2/Protoforge | Found Cep. Recoil Nullifier 10450 | -2/Protoforge | Found Cep. Hypertargeting System 10596 | -2/Protoforge | Destroyed 10 combat bots 10681 | -2/Protoforge | Found Exp. Remote Shield 10786 | -2/Protoforge | Found Cep. Chromion Battery 10797 | -2/Protoforge | Found Faulty Cep. XC Strikerail 10799 | -2/Protoforge | Found Faulty Cep. XC Strikerail 10807 | -2/Protoforge | Found Exp. System Purifier 10859 | -2/Protoforge | Core integrity fell below 20% 10898 | -2/Protoforge | Destroyed 9 combat bots 10939 | -2/Protoforge | Spotted Hotshot 10948 | -2/Protoforge | Spotted Hotshot 10951 | -2/Protoforge | Destroyed Hotshot 10981 | -2/Protoforge | Destroyed Hotshot 11055 | -2/Protoforge | Spotted Hotshot 11061 | -2/Protoforge | Spotted Hotshot 11062 | -2/Protoforge | Spotted Overlord 11084 | -2/Protoforge | Discovered new exit (range 5) 11087 | -2/Protoforge | Identified exit to Access 11088 | -2/Protoforge | Entered Access 11088 | -1/Access | Evolved 2 slots: Weapon x2 11249 | -1/Access | Build established: Mutant 11588 | -1/Access | First assault squad dispatched 11749 | -1/Access | Build established: Scavenger-Gunner 11953 | -1/Access | Energy Cycler disabled 12117 | -1/Access | Lost 3 parts (1p1u1w) 12178 | -1/Access | Build established: Scavenger-Skirmisher 12283 | -1/Access | Discovered new exit (range 8) 12288 | -1/Access | Identified exit to Command 12289 | -1/Access | Entered Command 12541 | -1/Command | Spotted M Guard 12541 | -1/Command | Spotted Combat Programmer 12550 | -1/Command | Spotted Combat Programmer 12550 | -1/Command | Spotted M Guard 12557 | -1/Command | System corruption reached 10% 12586 | -1/Command | Destroyed Combat Programmer 12597 | -1/Command | Destroyed Combat Programmer 12676 | -1/Command | Destroyed M Guard 12699 | -1/Command | Lost 4 parts (1p2n1u) 12789 | -1/Command | First assault squad dispatched 13004 | -1/Command | Lost 7 parts (1p1n2u3w) 13077 | -1/Command | Destroyed M Guard 13077 | -1/Command | All MAIN.C guards destroyed 13093 | -1/Command | Found Prototype Launcher 13093 | -1/Command | Identified Hellfire Missile Launcher 13123 | -1/Command | Met MAIN.C 13134 | -1/Command | System corruption reached 30% 13175 | -1/Command | 0b10 Conduit disabled 13251 | -1/Command | Core integrity fell below 50% 13267 | -1/Command | Core integrity fell below 20% 13276 | -1/Command | Destroyed by MAIN.C with Heavy Quantum Rifle Last Messages --------------- 13267_ P-80 Master cannot be rewired. 13268_ Attempting to rewire P-80 Master. 13268_ P-80 Master cannot be rewired. 13269_ Attempting to rewire P-80 Master. 13269_ P-80 Master cannot be rewired. 13270_ System corrupted: Substantial component data lost. 13270_ Attempting to rewire P-80 Master. 13270_ P-80 Master cannot be rewired. 13271_ Attempting to rewire P-80 Master. 13271_ P-80 Master cannot be rewired. 13272_ Attempting to rewire P-80 Master. 13272_ P-80 Master cannot be rewired. 13272_ Cep. Networked Targeting System destroyed. 13273_ Attempting to rewire P-80 Master. 13273_ P-80 Master cannot be rewired. 13274_ Attempting to rewire P-80 Master. 13274_ P-80 Master cannot be rewired. 13275_ P-80 Master reactivates. Map ----- +----------------------------------------------------+ | ?????????????????????????????????????????????????? | | ?????????????????????????????????????????????????? | | ?????????????????????????????????????????????????? | | ?????????????????????????????????????????????????? | | ?????????????????????????????????????????????????? | | ?????????????????????????????????????????????????? | | ?????????????????????????????????????????????????? | | ?????????????????????????????????????????????????? | | ?????????????????????????????????????????????????? | | ?????????????????????????????????????????????????? | | ?????????????????????????????????????????????????? | | ?????????????????????????????????????????????????? | | ?????????????????????????????????????????????????? | | ?????????????????????????????????????????????????? | | ?????????????????????????????????????????????????? | | ???????????????######################????????????? | | ??????????????#""""""" """" #????????????? | | ??????????????#"" "" #????????????? | | ??????????????#""""" "" ############## | | ??????????????#"""""""""" / | | ??????????????#" " " ; | | ??????????????#"" " "" [/ | | ??????????????#"" "" !=!############## | | ??????????????# " """ !#????????????? | | ??????????????# " pMMM #????????????? | | ??????????????# " @MMM ""#????????????? | | ??????????????#"""" pMMM """""#????????????? | | ??????????????#"" """"""#????????????? | | ??????????????# """""""""#????????????? | | ??????????????# " " " " #????????????? | | ??????????????# " " " " #????????????? | | ??????????????" " " " """" " #????????????? | | ??????????????" """ " " """" #????????????? | | ??????????????" " " " " #????????????? | | ??????????????# """"""""" " #????????????? | | ??????????????# " """ " """"""""#????????????? | | ??????????????# """ " " " ?????????????? | | ??????????????######################?????????????? | | ?????????????????????????????????????????????????? | | ?????????????????????????????????????????????????? | | ?????????????????????????????????????????????????? | | ?????????????????????????????????????????????????? | | ?????????????????????????????????????????????????? | | ?????????????????????????????????????????????????? | | ?????????????????????????????????????????????????? | | ?????????????????????????????????????????????????? | | ?????????????????????????????????????????????????? | | ?????????????????????????????????????????????????? | | ?????????????????????????????????????????????????? | | ?????????????????????????????????????????????????? | +----------------------------------------------------+ Best States ------------- Heat Dissipation 102 Coolant Potential 100 Energy Generation 55 Energy Capacity 1215 Matter Stores 321 Matter Capacity 600 Sight Range 24 Robot Scan Range 16 Terrain Scan Density 10 Jamming Range 16 Cloak Strength 4 Corruption Containment 12 Armor Coverage 675 Resistance: KI 30 Resistance: EM 20 Core Shielding 90 Point Defense Rating 480 Evasion (%) 73 Targeting Accuracy 30 Target Analysis 8 Core Analysis 9 Recoil Reduction 99 Kinecelleration 66 Offensive Hacking 66 Defensive Hacking 24 Authchip Count 3 Item Schematics ----------------- Weapon Mount | -5/Factory | Hacked Cld. VTOL Module | -5/Factory | Hacked Assault Drone Bay | -5/Zhirov | Free Exp. Heat Sink | -5/Zhirov | Free Exp. Optical Array | -5/Zhirov | Free Imp. Arc Thrower | -5/Zhirov | Free Tri-rail Accelerator | -4/Factory | Hacked Hvy. Proton Cannon | -3/Testing | Archive Hvy. Antimatter Reactor | -3/Testing | Archive Centrium Heavy Armor Plating | -2/Protoforge | Archive Exp. Power Amplifier | -2/Protoforge | Archive Thermal Barrier | -2/Protoforge | Archive Imp. Q-thruster | -2/Protoforge | Archive Exp. Q-thruster | -2/Protoforge | Archive Com. Tesla Bomb Launcher | -2/Protoforge | Archive Robot Schematics ------------------ C-57 Dissector | -2/Protoforge | Archive Fabricated ------------ Weapon Mount | x2 | -5/Factory | Authchip Cld. VTOL Module | x1 | -5/Factory | Authchip Cld. VTOL Module | x1 | -4/Factory Tri-rail Accelerator | x1 | -4/Factory | Authchip Repaired ---------- Hrd. Medium Armor Plating | 18% | -8/Materials Imp. Flight Unit | 55% | -5/Factory Adv. Cloaking Device | 18% | -4/Factory | Broken Cld. VTOL Module | 41% | -4/Factory Imp. Antigrav System | 30% | -3/Testing Studied --------- Lgt. Nuclear Core | -8/Materials | Hacked Autogun | -8/Materials | Hacked Rocket Launcher | -8/Materials | Hacked Mic. Fission Core | -4/Factory | Hacked Field Propulsion Drive | -4/Factory | Hacked Mic. Antimatter Reactor | -3/Testing | Hacked Micro-nuke Launcher | -3/Testing | Hacked Alien Tech Used ----------------- Integrated Reactor Achievements -------------- Hulk Smash No Room For Error Release The Drones! Worth The Wait Challenges ------------ None Game ------ Seed SuperdenseMappingGenerator Manual? 0 Play Time 05:36:10 Cumulative 240.9 hours Start 2026.04.27 @ 23:36:42 End 2026.04.28 @ 23:29:53 Sessions 7 Manual Loads 0 Difficulty Rogue Special Mode None Game No. 131 Rogue 131 Adventurer 0 Explorer 0 Win Type - Total 8 Types 4/0/2/1/0/0/0/1/0/0 Lore% 69 Gallery% 63 Achievement% 56 Wizard Run 0 Options --------- Layout 2 ASCII 0 Keyboard 1 Movement Arrows Keybinds 0 Fullscreen 2 Font 24/Terminus Map View 50x44 Zoom Use 0% Tactical HUD 1 Map Filters NONE Filters NONE Steam 1 RUN: 253c1457-9944-4558-b7ec-10aa97e3e984